Workbook

Sheet Figure 5a left graph
A1: Open Field
A2: tpa023b | B2: Dose | C2: 0 | D2: 1 | E2: 3 | F2: 0 | G2: 1 | H2: 3 | I2: 0 | J2: 1 | K2: 3 | L2: 0 | M2: 1 | N2: 3 | O2: 0 | P2: 1 | Q2: 3 | R2: 0 | S2: 1 | T2: 3 | U2: 0 | V2: 1 | W2: 3 | X2: 0.1 | Y2: 0.3 | Z2: 0.1 | AA2: 0.1 | AB2: 0.1 | AC2: 0.1 | AD2: 0.3 | AE2: 0.3 | AF2: 0.3 | AG2: 0.3
B3: time (min)
B4: 24 | C4: 841 | D4: 918 | E4: 1027 | F4: 814 | G4: 1100 | H4: 783 | I4: 432 | J4: 853 | K4: 1359 | L4: 669 | M4: 1140 | N4: 1423 | O4: 598 | P4: 821 | Q4: 995 | R4: 563 | S4: 762 | T4: 1017 | U4: 637 | V4: 878 | W4: 874 | X4: 856 | Y4: 837 | Z4: 613 | AA4: 592 | AB4: 789 | AC4: 928 | AD4: 663 | AE4: 892 | AF4: 930 | AG4: 761
B5: 48 | C5: 565 | D5: 504 | E5: 502 | F5: 661 | G5: 1034 | H5: 517 | I5: 353 | J5: 766 | K5: 757 | L5: 442 | M5: 686 | N5: 1078 | O5: 589 | P5: 638 | Q5: 717 | R5: 320 | S5: 604 | T5: 594 | U5: 405 | V5: 680 | W5: 534 | X5: 640 | Y5: 401 | Z5: 440 | AA5: 450 | AB5: 484 | AC5: 679 | AD5: 468 | AE5: 382 | AF5: 936 | AG5: 564
B6: 72 | C6: 367 | D6: 369 | E6: 594 | F6: 441 | G6: 746 | H6: 265 | I6: 279 | J6: 898 | K6: 635 | L6: 343 | M6: 501 | N6: 814 | O6: 490 | P6: 646 | Q6: 547 | R6: 280 | S6: 588 | T6: 863 | U6: 388 | V6: 565 | W6: 430 | X6: 372 | Y6: 240 | Z6: 36 | AA6: 366 | AB6: 112 | AC6: 443 | AD6: 320 | AE6: 494 | AF6: 646 | AG6: 382
B7: 96 | C7: 332 | D7: 237 | E7: 429 | F7: 275 | G7: 711 | H7: 286 | I7: 186 | J7: 795 | K7: 418 | L7: 469 | M7: 268 | N7: 738 | O7: 336 | P7: 595 | Q7: 757 | R7: 12 | S7: 510 | T7: 461 | U7: 430 | V7: 770 | W7: 406 | X7: 194 | Y7: 190 | Z7: 138 | AA7: 212 | AB7: 216 | AC7: 407 | AD7: 171 | AE7: 173 | AF7: 511 | AG7: 305
B8: 120 | C8: 195 | D8: 512 | E8: 337 | F8: 239 | G8: 400 | H8: 247 | I8: 109 | J8: 799 | K8: 539 | L8: 53 | M8: 48 | N8: 1005 | O8: 199 | P8: 421 | Q8: 809 | R8: 3 | S8: 662 | T8: 371 | U8: 297 | V8: 659 | W8: 279 | X8: 54 | Y8: 36 | Z8: 284 | AA8: 97 | AB8: 19 | AC8: 112 | AD8: 118 | AE8: 163 | AF8: 524 | AG8: 301
B9: 144 | C9: 136 | D9: 441 | E9: 93 | F9: 164 | G9: 251 | H9: 333 | I9: 177 | J9: 1030 | K9: 165 | L9: 232 | M9: 205 | N9: 809 | O9: 180 | P9: 289 | Q9: 639 | R9: 324 | S9: 549 | T9: 141 | U9: 229 | V9: 452 | W9: 150 | X9: 19 | Y9: 22 | Z9: 113 | AA9: 150 | AB9: 185 | AC9: 277 | AD9: 66 | AE9: 166 | AF9: 316 | AG9: 202
B10: 168 | C10: 65 | D10: 612 | E10: 151 | F10: 137 | G10: 314 | H10: 217 | I10: 0 | J10: 913 | K10: 595 | L10: 274 | M10: 187 | N10: 479 | O10: 266 | P10: 472 | Q10: 275 | R10: 246 | S10: 261 | T10: 117 | U10: 308 | V10: 616 | W10: 317 | X10: 340 | Y10: 188 | Z10: 13 | AA10: 364 | AB10: 55 | AC10: 421 | AD10: 117 | AE10: 201 | AF10: 385 | AG10: 23
B11: 192 | C11: 202 | D11: 367 | E11: 120 | F11: 260 | G11: 185 | H11: 91 | I11: 259 | J11: 1214 | K11: 543 | L11: 155 | M11: 392 | N11: 752 | O11: 448 | P11: 120 | Q11: 236 | R11: 199 | S11: 289 | T11: 14 | U11: 170 | V11: 525 | W11: 191 | X11: 176 | Y11: 298 | Z11: 181 | AA11: 337 | AB11: 74 | AC11: 244 | AD11: 256 | AE11: 35 | AF11: 211 | AG11: 23
B12: 216 | C12: 279 | D12: 84 | E12: 35 | F12: 164 | G12: 53 | H12: 141 | I12: 151 | J12: 670 | K12: 141 | L12: 200 | M12: 146 | N12: 214 | O12: 329 | P12: 88 | Q12: 42 | R12: 195 | S12: 157 | T12: 30 | U12: 196 | V12: 374 | W12: 408 | X12: 158 | Y12: 41 | Z12: 50 | AA12: 5 | AB12: 137 | AC12: 402 | AD12: 143 | AE12: 74 | AF12: 376 | AG12: 48
B13: 240 | C13: 278 | D13: 124 | E13: 81 | F13: 121 | G13: 17 | H13: 264 | I13: 207 | J13: 819 | K13: 23 | L13: 270 | M13: 98 | N13: 154 | O13: 199 | P13: 108 | Q13: 23 | R13: 4 | S13: 66 | T13: 37 | U13: 109 | V13: 145 | W13: 623 | X13: 154 | Y13: 179 | Z13: 51 | AA13: 135 | AB13: 54 | AC13: 290 | AD13: 51 | AE13: 160 | AF13: 91 | AG13: 145
B14: 264 | C14: 268 | D14: 150 | E14: 143 | F14: 9 | G14: 84 | H14: 67 | I14: 265 | J14: 824 | K14: 55 | L14: 64 | M14: 80 | N14: 92 | O14: 214 | P14: 72 | Q14: 15 | R14: 115 | S14: 88 | T14: 305 | U14: 92 | V14: 610 | W14: 332 | X14: 233 | Y14: 84 | Z14: 81 | AA14: 558 | AB14: 12 | AC14: 482 | AD14: 72 | AE14: 34 | AF14: 291 | AG14: 87
B15: 288 | C15: 126 | D15: 136 | E15: 12 | F15: 93 | G15: 66 | H15: 5 | I15: 55 | J15: 728 | K15: 554 | L15: 24 | M15: 218 | N15: 107 | O15: 52 | P15: 31 | Q15: 171 | R15: 4 | S15: 302 | T15: 155 | U15: 222 | V15: 284 | W15: 497 | X15: 8 | Y15: 32 | Z15: 44 | AA15: 140 | AB15: 63 | AC15: 284 | AD15: 161 | AE15: 29 | AF15: 315 | AG15: 9
B16: 312 | C16: 98 | D16: 22 | E16: 13 | F16: 281 | G16: 99 | H16: 40 | I16: 0 | J16: 732 | K16: 183 | L16: 22 | M16: 10 | N16: 91 | O16: 161 | P16: 42 | Q16: 222 | R16: 93 | S16: 87 | T16: 6 | U16: 176 | V16: 107 | W16: 333 | X16: 119 | Y16: 157 | Z16: 360 | AA16: 227 | AB16: 132 | AC16: 196 | AD16: 105 | AE16: 24 | AF16: 333 | AG16: 17
B17: 336 | C17: 0 | D17: 176 | E17: 104 | F17: 20 | G17: 72 | H17: 0 | I17: 144 | J17: 334 | K17: 28 | L17: 200 | M17: 19 | N17: 62 | O17: 277 | P17: 20 | Q17: 71 | R17: 3 | S17: 58 | T17: 7 | U17: 115 | V17: 275 | W17: 282 | X17: 382 | Y17: 57 | Z17: 264 | AA17: 2 | AB17: 73 | AC17: 7 | AD17: 31 | AE17: 143 | AF17: 45 | AG17: 43
B18: 360 | C18: 1 | D18: 0 | E18: 140 | F18: 0 | G18: 212 | H18: 0 | I18: 139 | J18: 7 | K18: 30 | L18: 122 | M18: 25 | N18: 84 | O18: 44 | P18: 49 | Q18: 5 | R18: 4 | S18: 159 | T18: 57 | U18: 79 | V18: 171 | W18: 341 | X18: 232 | Y18: 58 | Z18: 2 | AA18: 6 | AB18: 5 | AC18: 184 | AD18: 161 | AE18: 25 | AF18: 138 | AG18: 13
B20: 1-2h | C20: =SUM(C6:C8) -> 894 | D20: =SUM(D6:D8) -> 1118 | E20: 1360 | F20: 955 | G20: 1857 | H20: 798 | I20: 574 | J20: 2492 | K20: 1592 | L20: 865 | M20: 817 | N20: 2557 | O20: 1025 | P20: 1662 | Q20: 2113 | R20: 295 | S20: 1760 | T20: 1695 | U20: 1115 | V20: 1994 | W20: 1115 | X20: 620 | Y20: 466 | Z20: 458 | AA20: 675 | AB20: 347 | AC20: 962 | AD20: 609 | AE20: 830 | AF20: 1681 | AG20: 988
D23: veh | F23: 0.1 | H23: 0.3 | J23: 1 | L23: 3
C24: time | D24: avg | E24: SEM | F24: avg | G24: SEM | H24: avg | I24: SEM | J24: avg | K24: SEM | L24: avg | M24: SEM
C25: =B4 -> 24 | D25: =AVERAGE(C4,F4,I4,L4,O4,R4,U4) -> 650.5714286 | E25: =STDEV(C4,F4,I4,L4,O4,R4,U4)/SQRT(COUNT(C4,F4,I4,L4,O4,R4,U4)) -> 53.82991607 | F25: =AVERAGE(X4,Z4:AC4) -> 755.6 | G25: =STDEV(X4,Z4:AC4)/SQRT(COUNT(X4,Z4:AC4)) -> 66.33897798 | H25: =AVERAGE(Y4,AD4:AG4) -> 816.6 | I25: =STDEV(Y4,AD4:AG4)/SQRT(COUNT(Y4,AD4:AG4)) -> 47.77300493 | J25: =AVERAGE(D4,G4,J4,M4,P4,S4,V4) -> 924.5714286 | K25: =STDEV(D4,G4,J4,M4,P4,S4,V4)/SQRT(COUNT(D4,G4,J4,M4,P4,S4,V4)) -> 53.82416573 | L25: =AVERAGE(E4,H4,K4,N4,Q4,T4,W4) -> 1068.285714 | M25: =STDEV(E4,H4,K4,N4,Q4,T4,W4)/SQRT(COUNT(E4,H4,K4,N4,Q4,T4,W4)) -> 89.86463743
C26: 48 | D26: 476.4285714 | E26: 48.93526197 | F26: 538.6 | G26: 50.2728555 | H26: 550.2 | I26: 101.572831 | J26: 701.7142857 | K26: 63.23866896 | L26: 671.2857143 | M26: 77.48047812
C27: 72 | D27: 369.7142857 | E27: 29.63404918 | F27: 265.8 | G27: 80.3681529 | H27: 416.4 | I27: 70.82767821 | J27: 616.1428571 | K27: 64.53918285 | L27: 592.5714286 | M27: 78.64533321
C28: 96 | D28: 291.4285714 | E28: 58.51977978 | F28: 233.4 | G28: 45.58025888 | H28: 270 | I28: 65.15980356 | J28: 555.1428571 | K28: 86.64086481 | L28: 499.2857143 | M28: 67.36669881
C29: 120 | D29: 156.4285714 | E29: 39.7509252 | F29: 113.2 | G29: 45.72461044 | H29: 228.4 | I29: 85.47900327 | J29: 500.1428571 | K29: 92.78942586 | L29: 512.4285714 | M29: 109.8706723
C30: 144 | D30: 206 | E30: 23.55843798 | F30: 148.8 | G30: 42.35374836 | H30: 154.4 | I30: 51.89373758 | J30: 459.5714286 | K30: 105.9190745 | L30: 332.8571429 | M30: 106.5016049
C31: 168 | D31: 185.1428571 | E31: 44.79074552 | F31: 238.6 | G31: 84.81780473 | H31: 182.8 | I31: 59.62751043 | J31: 482.1428571 | K31: 95.71869215 | L31: 307.2857143 | M31: 65.8619459
C32: 192 | D32: 241.8571429 | E32: 37.55974832 | F32: 202.4 | G32: 43.29503436 | H32: 164.6 | I32: 57.07416228 | J32: 441.7142857 | K32: 138.3697108 | L32: 278.1428571 | M32: 101.6369422
C33: 216 | D33: 216.2857143 | E33: 24.2817924 | F33: 150.4 | G33: 68.83356739 | H33: 136.4 | I33: 62.55445628 | J33: 224.5714286 | K33: 84.42011077 | L33: 144.4285714 | M33: 51.1519013
C34: 240 | D34: 169.7142857 | E34: 37.01718667 | F34: 136.8 | G34: 43.58141806 | H34: 125.2 | I34: 23.63556642 | J34: 196.7142857 | K34: 104.903519 | L34: 172.1428571 | M34: 82.09994738
C35: 264 | D35: 146.7142857 | E35: 38.74072195 | F35: 273.2 | G35: 107.5850361 | H35: 113.6 | I35: 45.34379781 | J35: 272.5714286 | K35: 117.5031625 | L35: 144.1428571 | M35: 47.42434003
C36: 288 | D36: 82.28571429 | E36: 27.91715148 | F36: 107.8 | G36: 49.05140161 | H36: 109.2 | I36: 58.0813223 | J36: 252.1428571 | K36: 88.39156084 | L36: 214.4285714 | M36: 84.08495057
C37: 312 | D37: 118.7142857 | E37: 36.49638879 | F37: 206.8 | G37: 43.18495108 | H37: 127.2 | I37: 57.67529801 | J37: 157 | K37: 96.91036605 | L37: 126.8571429 | M37: 46.57274319
C38: 336 | D38: 108.4285714 | E38: 40.47389349 | F38: 145.6 | G38: 75.83046881 | H38: 63.8 | I38: 20.22473733 | J38: 136.2857143 | K38: 48.16870862 | L38: 79.14285714 | M38: 36.58416817
C39: 360 | D39: 55.57142857 | E39: 22.24416151 | F39: 85.8 | G39: 50.46622633 | H39: 79 | I39: 29.93158866 | J39: 89 | K39: 33.48560458 | L39: 93.85714286 | M39: 45.10486647

Sheet 5a right graph
A3: dose | B3: 0 | C3: 0.1 | D3: 0.3 | E3: 1 | F3: 3
B4: 894 | C4: 620 | D4: 466 | E4: 1118 | F4: 1360
B5: 955 | C5: 458 | D5: 609 | E5: 1857 | F5: 798
B6: 574 | C6: 675 | D6: 830 | E6: 2492 | F6: 1592
B7: 865 | C7: 347 | D7: 1681 | E7: 817 | F7: 2557
B8: 1025 | C8: 962 | D8: 988 | E8: 1662 | F8: 2113
B9: 295 | E9: 1760 | F9: 1695
B10: 1115 | E10: 1994 | F10: 1115
A12: avg | B12: =AVERAGE(B4:B10) -> 817.5714286 | C12: =AVERAGE(C4:C10) -> 612.4 | D12: 914.8 | E12: 1671.428571 | F12: 1604.285714
A13: SEM | B13: =STDEV(B4:B10)/SQRT(COUNT(B4:B10)) -> 108.1088202 | C13: =STDEV(C4:C10)/SQRT(COUNT(C4:C10)) -> 104.9936189 | D13: 211.4883921 | E13: 210.220503 | F13: 224.8813141

Sheet 5b
B2: veh | C2: TPA023B
B3: 80 | C3: 80
B4: 90 | C4: 90
B5: 100 | C5: 100
B6: 100 | C6: 70
B7: 90 | C7: 100
B8: 100 | C8: 90
A10: avg | B10: =AVERAGE(B3:B8) -> 93.33333333 | C10: =AVERAGE(C3:C8) -> 88.33333333
A11: SEM | B11: =STDEV(B3:B8)/SQRT(COUNT(B3:B8)) -> 3.333333333 | C11: =STDEV(C3:C8)/SQRT(COUNT(C3:C8)) -> 4.772607021

Sheet 5c
B2: veh | C2: TPA023B
B3: 92.1 | C3: 127
B4: 76.6 | C4: 134.8
B5: 118.9 | C5: 109.4
B6: 96 | C6: 186.8
B7: 127.2 | C7: 153
B8: 60.9 | C8: 104.9
A10: avg | B10: =AVERAGE(B3:B8) -> 95.28333333 | C10: =AVERAGE(C3:C8) -> 135.9833333
A11: SEM | B11: =STDEV(B3:B8)/SQRT(COUNT(B3:B8)) -> 10.19533935 | C11: =STDEV(C3:C8)/SQRT(COUNT(C3:C8)) -> 12.41886781
